bitfinex/quotes_BTCUSD_20240826
["timestamp","ask_amount","ask_price","bid_price","bid_amount"]
[1724686781732,0.00071693,63500.0,63499.0,1.59378336]
[1724686782108,0.00071693,63500.0,63499.0,1.27881836]
[1724686783402,0.00071693,63500.0,63499.0,1.77296137]
[1724686785464,0.00071693,63500.0,63499.0,1.30181836]
[1724686785894,0.00071693,63500.0,63499.0,1.61678336]
[1724686786101,0.00071693,63500.0,63499.0,1.30181836]
[1724686786529,0.00071693,63500.0,63499.0,1.61678336]
[1724686787328,0.00071693,63500.0,63499.0,1.30181836]
[1724686787926,0.00071693,63500.0,63499.0,1.61678336]
[1724686790472,0.00071693,63500.0,63499.0,1.77296137]
[1724686792118,0.00071693,63500.0,63499.0,1.30181836]
[1724686792456,0.00071693,63500.0,63499.0,1.13671836]
[1724686795042,0.00071693,63500.0,63499.0,0.82175336]
[1724686795215,0.01171408,63500.0,63499.0,0.82175336]
[1724686795910,0.01171408,63500.0,63499.0,0.160306]
[1724686796109,0.09131408,63500.0,63499.0,0.160306]
[1724686796435,0.09131408,63500.0,63499.0,0.475271]
[1724686797695,0.01171408,63500.0,63499.0,0.475271]
[1724686797919,0.01171408,63500.0,63499.0,0.790236]
[1724686800191,0.01171408,63500.0,63499.0,1.105201]
[1724686800762,0.00071693,63500.0,63499.0,1.105201]
[1724686801263,0.00071693,63500.0,63499.0,0.790236]
[1724686801467,0.19380597,63500.0,63499.0,0.160306]
[1724686801671,0.15758514,63500.0,63499.0,0.160306]
[1724686801878,0.15758514,63500.0,63499.0,0.83882376]
[1724686801879,0.01168514,63500.0,63499.0,0.83882376]
[1724686802064,0.01168514,63500.0,63499.0,1.21578876]
[1724686803470,0.01168514,63500.0,63499.0,1.53075376]
[1724686803648,0.00071693,63500.0,63499.0,1.53075376]
[1724686804486,0.00071693,63500.0,63499.0,1.55375376]
[1724686805230,0.00071693,63500.0,63499.0,1.7996545]
[1724686806654,0.00071693,63500.0,63499.0,1.78783177]
[1724686806852,0.00071693,63500.0,63499.0,1.79965685]
[1724686807061,0.00071693,63500.0,63499.0,1.78783177]
[1724686807258,0.00071693,63500.0,63499.0,2.11462207]
[1724686807928,0.00071693,63500.0,63499.0,1.79965707]
[1724686809615,0.00071693,63500.0,63499.0,1.79965687]
[1724686809811,0.00071693,63500.0,63499.0,1.78783177]
[1724686810014,0.00071693,63500.0,63499.0,1.79965687]
[1724686810262,0.00071693,63500.0,63499.0,2.11462187]
[1724686811074,0.00071693,63500.0,63499.0,1.79965686]
[1724686813371,0.0028866,63508.0,63507.0,1.417162]
[1724686813572,0.0028866,63508.0,63507.0,2.05436805]
[1724686813776,0.0028866,63508.0,63507.0,2.39329305]
[1724686814000,0.0028866,63508.0,63507.0,2.49329305]
[1724686814224,0.05626767,63526.0,63524.0,1.416784]
[1724686814459,0.00906401,63526.0,63524.0,1.504884]
[1724686814666,0.01985335,63525.0,63524.0,1.56528896]
[1724686814878,0.00907501,63525.0,63524.0,1.56528896]
[1724686815108,0.00907501,63525.0,63524.0,1.55347176]
[1724686815513,0.01407501,63525.0,63524.0,1.55447176]
[1724686816846,0.01407501,63525.0,63524.0,1.55347176]
[1724686816847,0.01007501,63525.0,63524.0,1.55347176]
[1724686817254,0.01007501,63525.0,63524.0,1.56414739]
[1724686818629,0.01007501,63525.0,63524.0,1.7203254]
[1724686820904,0.01007501,63525.0,63524.0,1.56414739]
[1724686821344,0.01007501,63525.0,63524.0,1.16120639]
[1724686822991,0.01007501,63525.0,63524.0,1.75126961]
[1724686823196,0.01007501,63525.0,63524.0,1.83496961]
[1724686824889,0.01007501,63525.0,63524.0,1.99114762]
[1724686828961,0.01007501,63525.0,63524.0,1.83496961]
[1724686834099,0.01007501,63525.0,63524.0,1.99114762]
[1724686836014,0.01007501,63525.0,63524.0,2.30598862]
[1724686836219,0.01007501,63525.0,63524.0,2.48718862]
[1724686836415,0.01007501,63525.0,63524.0,2.49898774]
[1724686836827,0.00907501,63525.0,63524.0,2.49898774]
[1724686837028,0.00907501,63525.0,63524.0,2.48718862]
[1724686837236,0.01107501,63525.0,63524.0,2.49718862]
[1724686837600,0.01007501,63525.0,63524.0,2.48918862]
[1724686837819,0.01007501,63525.0,63524.0,2.49518862]
[1724686838187,0.01007501,63525.0,63524.0,2.81002962]
[1724686839284,0.01007501,63525.0,63524.0,2.5358074]
[1724686839412,0.01107501,63525.0,63524.0,2.2209664]
[1724686839626,0.01107501,63525.0,63524.0,2.2219664]
[1724686840492,0.01107501,63525.0,63524.0,2.23376208]
[1724686842047,0.01107501,63525.0,63524.0,2.2219664]
[1724686842321,0.01107501,63525.0,63524.0,2.23376109]
[1724686845610,0.01107501,63525.0,63524.0,2.23375988]
[1724686848524,0.01107501,63525.0,63524.0,2.5089821]
[1724686849050,0.01107501,63525.0,63524.0,2.5089828]
[1724686849250,0.01107501,63525.0,63524.0,2.49718862]
[1724686849454,0.01107501,63525.0,63524.0,2.19314175]
[1724686849656,0.01107501,63525.0,63524.0,2.17014175]
[1724686850766,0.01107501,63525.0,63524.0,2.19314175]
[1724686851099,0.01107501,63525.0,63524.0,2.19414175]
[1724686851720,0.01107501,63525.0,63524.0,2.49718862]
[1724686851932,0.01107501,63525.0,63524.0,2.50898335]
[1724686852348,0.01107501,63525.0,63524.0,2.50898337]
[1724686856368,0.01107501,63525.0,63524.0,2.50798337]
[1724686856573,0.01107501,63525.0,63524.0,2.19314237]
[1724686857332,0.01107501,63525.0,63524.0,0.91957238]
[1724686857533,0.09397501,63525.0,63524.0,0.90777763]
[1724686857734,0.09397501,63525.0,63524.0,1.22261863]
[1724686858208,0.09397501,63525.0,63524.0,0.90777763]
[1724686858812,0.09297501,63525.0,63524.0,1.21461863]
[1724686859019,0.09197501,63525.0,63524.0,0.89977763]
[1724686859233,0.15297501,63525.0,63524.0,0.48493663]
[1724686859441,0.15297501,63525.0,63524.0,0.15942]
[1724686859649,0.15297501,63525.0,63524.0,0.16042]
[1724686859874,0.16065427,63525.0,63524.0,0.15842]
[1724686860076,0.25487323,63525.0,63524.0,0.001]
[1724686860279,0.60503412,63525.0,63524.0,0.001]
[1724686860493,0.51081516,63525.0,63524.0,0.001]
[1724686860914,0.60420356,63525.0,63524.0,0.15842]
[1724686861117,0.23143974,63525.0,63524.0,0.473261]
[1724686861325,0.2297385,63525.0,63524.0,0.788102]
[1724686861529,0.2297385,63525.0,63524.0,0.787102]
[1724686861530,0.15297501,63525.0,63524.0,0.787102]
[1724686861747,0.15297501,63525.0,63524.0,1.101943]
[1724686861953,0.01507501,63525.0,63524.0,1.102943]
[1724686862366,0.02207501,63525.0,63524.0,1.102943]
[1724686862733,0.00907501,63525.0,63524.0,1.4515819]
[1724686862930,0.00907501,63525.0,63524.0,1.60775991]
[1724686863134,0.01807501,63525.0,63524.0,1.68285991]
[1724686863515,0.01407501,63525.0,63524.0,1.68285991]
[1724686863749,0.00907501,63525.0,63524.0,1.68285991]
[1724686863918,0.01007501,63525.0,63524.0,1.68485991]
[1724686864595,0.01007501,63525.0,63524.0,1.68485946]
[1724686864971,0.01007501,63525.0,63524.0,1.69840998]
[1724686865170,0.01007501,63525.0,63524.0,1.69540998]
[1724686865516,0.01007501,63525.0,63524.0,1.70040998]
[1724686865671,0.01107501,63525.0,63524.0,2.01725098]
[1724686865873,0.01107501,63525.0,63524.0,2.11725098]
[1724686867556,0.01107501,63525.0,63524.0,1.80240998]
[1724686868241,0.01107501,63525.0,63524.0,1.72730998]
[1724686868647,0.01107501,63525.0,63524.0,1.72732391]
[1724686869708,0.00107501,63525.0,63524.0,1.72732391]
[1724686870039,0.00107501,63525.0,63524.0,1.80682391]
[1724686872141,0.00107501,63525.0,63524.0,1.80683]
[1724686874012,0.00198252,63525.0,63524.0,1.80683]
[1724686875650,0.00198252,63525.0,63524.0,1.80683004]
[1724686876116,0.00198252,63525.0,63524.0,1.25631103]
[1724686876315,0.00198252,63525.0,63524.0,1.22149352]
[1724686876513,0.00198252,63525.0,63524.0,1.23331326]
[1724686876687,0.00198252,63525.0,63524.0,1.38949127]
[1724686877142,0.00198252,63525.0,63524.0,1.70433227]
[1724686877548,0.00198252,63525.0,63524.0,1.72733227]
[1724686879356,0.00198252,63525.0,63524.0,1.72733352]
[1724686880657,0.00198252,63525.0,63524.0,2.04217452]
[1724686880856,0.00198252,63525.0,63524.0,2.11747452]
[1724686881666,0.00198252,63525.0,63524.0,1.80263352]
[1724686883460,0.00198252,63525.0,63524.0,2.11747452]
[1724686883881,0.00198252,63525.0,63524.0,1.80263352]
[1724686884093,0.00198252,63525.0,63524.0,1.95263352]
[1724686885161,0.00198252,63525.0,63524.0,2.26747452]
[1724686885361,0.00198252,63525.0,63524.0,1.95263352]
[1724686885798,0.00198252,63525.0,63524.0,2.26747452]
[1724686886000,0.00198252,63525.0,63524.0,2.26847452]
[1724686886175,0.00198252,63525.0,63524.0,2.26929952]
[1724686886380,0.00198252,63525.0,63524.0,2.26929812]
[1724686886594,0.00198252,63525.0,63524.0,2.33369812]
[1724686889250,0.00198252,63525.0,63524.0,2.33269812]
[1724686890236,0.00198252,63525.0,63524.0,2.32087853]
[1724686890439,0.00198252,63525.0,63524.0,2.33269811]
[1724686891455,0.00804653,63526.0,63525.0,1.416762]
[1724686891664,0.00804653,63526.0,63525.0,1.70775959]
[1724686892024,0.00804653,63526.0,63525.0,2.02259559]
[1724686892667,0.01004653,63526.0,63525.0,2.03059559]
[1724686893647,0.01004653,63526.0,63525.0,2.03159559]
[1724686893889,0.01004653,63526.0,63525.0,2.48563138]
[1724686894102,0.00907501,63531.0,63530.0,1.73146]
[1724686894305,0.00907501,63531.0,63530.0,2.4148796]
[1724686894515,0.00907501,63531.0,63530.0,2.7296906]
[1724686894728,0.00907501,63531.0,63530.0,2.79988049]
[1724686894932,0.00907501,63531.0,63530.0,2.82347543]
[1724686895309,0.00907501,63531.0,63530.0,2.82447543]
[1724686895559,1e-08,63539.0,63538.0,0.0786]
[1724686895726,0.0146675,63545.0,63544.0,0.157371]
[1724686896002,0.0146675,63545.0,63544.0,2.0529957]
[1724686896219,0.0146675,63545.0,63544.0,2.3907377]
[1724686896950,0.0146675,63545.0,63544.0,2.4548377]
[1724686897955,0.0156675,63545.0,63544.0,2.4618377]
[1724686898341,0.0156675,63545.0,63544.0,2.4698377]
[1724686898574,0.0166675,63545.0,63544.0,2.4698377]
[1724686900424,0.0166675,63545.0,63544.0,2.46983427]
[1724686900627,0.0166675,63545.0,63544.0,2.01339227]
[1724686902286,0.0166675,63545.0,63544.0,2.00157633]
[1724686905825,0.1555675,63545.0,63544.0,2.00157633]
[1724686906226,0.0940675,63545.0,63544.0,2.00157633]
[1724686906439,0.0166675,63545.0,63544.0,2.00157633]
[1724686909585,0.0166675,63545.0,63544.0,2.38111833]
[1724686909793,0.0166675,63545.0,63544.0,2.48107623]
[1724686910005,0.0166675,63545.0,63544.0,2.46431833]
[1724686910633,0.0156675,63545.0,63544.0,2.45731833]
[1724686910848,0.0165739,63545.0,63544.0,2.45731833]
[1724686911268,0.0175739,63545.0,63544.0,2.46831833]
[1724686911489,0.0165739,63545.0,63544.0,2.46031833]
[1724686911688,0.00907501,63553.0,63552.0,1.496159]
[1724686911902,0.00907501,63553.0,63552.0,2.43036123]
[1724686913142,0.01007501,63553.0,63552.0,2.44436123]
[1724686913351,0.00907501,63553.0,63552.0,2.43036123]
[1724686913763,0.00907501,63553.0,63552.0,1.97055923]
[1724686913964,0.00907501,63553.0,63552.0,1.98639633]
[1724686914850,0.01007501,63553.0,63552.0,2.01239633]
[1724686915320,0.01007501,63553.0,63552.0,2.00039633]
[1724686915853,0.01007501,63553.0,63552.0,2.01439633]
[1724686917103,0.01007501,63553.0,63552.0,2.02468557]
[1724686920468,0.01007501,63553.0,63552.0,1.51496846]
[1724686920691,0.07477501,63553.0,63552.0,1.51496846]
[1724686921540,0.07377501,63553.0,63552.0,1.48696846]
[1724686921963,0.00907501,63553.0,63552.0,1.65014647]
[1724686922199,0.00907501,63553.0,63552.0,1.71484647]
[1724686922552,0.00907501,63553.0,63552.0,2.05254847]
[1724686923455,0.00907501,63553.0,63552.0,2.13494847]
[1724686923656,0.00907501,63553.0,63552.0,2.72487269]
[1724686924470,0.00907501,63553.0,63552.0,2.41017069]
[1724686924678,0.00907501,63553.0,63552.0,2.40717069]
[1724686924883,0.00907501,63553.0,63552.0,2.12794847]
[1724686925108,0.00907501,63553.0,63552.0,2.15194847]
[1724686925109,0.01007501,63553.0,63552.0,2.15194847]
[1724686925383,0.01007501,63553.0,63552.0,2.46665047]
[1724686925596,0.00907501,63553.0,63552.0,2.45565047]
[1724686926050,0.01007501,63553.0,63552.0,2.46765047]
[1724686926876,0.00906401,63564.0,63559.0,0.0821]
[1724686927116,0.0004,63579.0,63571.0,0.471912]
[1724686927320,0.0004,63579.0,63571.0,1.99383623]
[1724686927527,0.0004,63579.0,63571.0,2.43144423]
[1724686927732,0.0004,63579.0,63573.0,1.183193]
[1724686927938,0.0004,63579.0,63573.0,1.77796901]
[1724686928146,1e-06,63579.0,63578.0,1.83850522]
[1724686928362,0.00907501,63583.0,63582.0,1.184039]
[1724686928572,0.00907501,63583.0,63582.0,1.77677101]
[1724686928777,0.00907501,63583.0,63582.0,2.09132501]
[1724686928982,0.061,63601.0,63582.0,2.09132501]
[1724686928983,0.46876099,63597.0,63596.0,0.314485]
[1724686929208,0.157206,63611.0,63596.0,0.314485]
[1724686929419,0.15617801,63610.0,63606.0,0.157216]
[1724686929665,0.15617801,63610.0,63601.0,0.314459]
[1724686929666,0.15617801,63610.0,63605.0,0.157219]
[1724686930072,0.15617801,63610.0,63601.0,0.314459]
[1724686930280,0.157217,63607.0,63602.0,0.2201198]
[1724686930701,0.15617801,63610.0,63602.0,0.0628938]
[1724686930938,0.157211,63609.0,63601.0,0.314457]
[1724686931148,0.15617801,63608.0,63602.0,0.314454]
[1724686931353,0.15617801,63608.0,63599.0,0.314469]
[1724686931566,0.157215,63607.0,63600.0,0.314465]
[1724686931747,0.15617801,63608.0,63602.0,0.157227]
[1724686931953,0.157215,63607.0,63602.0,0.158227]
[1724686932158,0.0576,63605.0,63602.0,0.158227]
[1724686932363,0.0576,63605.0,63603.0,0.157223]
[1724686932573,0.0576,63605.0,63601.0,0.001]
[1724686932574,0.157225,63603.0,63601.0,0.001]
[1724686932789,0.41170501,63602.0,63601.0,0.001]
[1724686933001,0.15617801,63602.0,63588.0,0.314522]
[1724686933207,0.15617801,63602.0,63590.0,0.157256]
[1724686933208,0.0983,63594.0,63590.0,0.157256]
[1724686933454,0.0576,63593.0,63589.0,0.157257]
[1724686933662,0.157248,63594.0,63589.0,0.157257]
[1724686933663,0.0576,63591.0,63589.0,0.2044359]
[1724686934093,0.0576,63591.0,63590.0,0.157257]
[1724686934915,0.0983,63590.0,63589.0,0.2044379]
[1724686935121,0.0983,63590.0,63588.0,0.001]
[1724686935753,0.21377801,63589.0,63579.0,0.314566]
[1724686935957,0.21377801,63589.0,63581.0,0.157279]
[1724686935958,0.0983,63582.0,63581.0,0.157279]
[1724686936170,0.0983,63582.0,63581.0,0.471838]
[1724686936374,0.0983,63582.0,63581.0,0.8335808]
[1724686936574,0.0576,63582.0,63581.0,0.8335808]
[1724686936982,0.0407,63583.0,63582.0,0.786385]
[1724686937253,0.0576,63590.0,63589.0,0.157258]
[1724686937626,0.0576,63590.0,63589.0,0.786296]
[1724686937627,0.06590868,63590.0,63589.0,0.786296]
[1724686937831,0.0576,63590.0,63589.0,0.83040568]
[1724686938037,0.009,63590.0,63589.0,1.14492468]
[1724686938244,0.005,63590.0,63589.0,1.14492468]
[1724686938855,0.011,63590.0,63589.0,1.14592468]
[1724686939057,0.000824,63593.0,63592.0,0.78626]
[1724686939303,0.000824,63593.0,63592.0,0.8334438]
[1724686939835,0.000824,63593.0,63592.0,0.5189398]
[1724686940046,0.00913268,63593.0,63592.0,0.2044358]
[1724686940250,0.00913268,63593.0,63592.0,0.0471838]
[1724686940471,0.00913268,63593.0,63592.0,0.2044358]
[1724686940845,0.00913268,63593.0,63592.0,0.157252]
[1724686941355,0.00913268,63593.0,63591.0,0.157254]
[1724686941567,0.00913268,63593.0,63592.0,0.157252]
[1724686941963,0.00913268,63593.0,63589.0,0.314519]
[1724686942168,0.01613268,63593.0,63592.0,0.158252]
[1724686942369,0.01613268,63593.0,63592.0,0.2055291]
[1724686942573,0.01613268,63593.0,63592.0,0.2065291]
[1724686942574,0.02513268,63593.0,63592.0,0.2065291]
[1724686942780,0.016824,63593.0,63592.0,0.5210331]
[1724686942983,0.009824,63593.0,63592.0,0.5200331]
[1724686943188,0.101,63608.0,63592.0,0.5200331]
[1724686943394,0.101,63608.0,63593.0,0.20126538]
[1724686943395,0.157239,63598.0,63593.0,0.20126538]
[1724686943612,0.15724,63597.0,63593.0,0.20126538]
[1724686943821,0.15617801,63598.0,63593.0,0.20126538]
[1724686944933,0.012,63597.0,63593.0,0.20226538]
[1724686945134,0.15617801,63598.0,63593.0,0.20126538]
[1724686945359,0.15617801,63598.0,63594.0,0.0472771]
[1724686945558,0.16917801,63598.0,63594.0,0.0472771]
[1724686945976,0.16517801,63598.0,63594.0,0.0472771]
[1724686946143,0.012,63597.0,63594.0,0.0472771]
[1724686946541,0.012,63597.0,63595.0,0.157245]
[1724686946751,0.007,63597.0,63596.0,0.04401638]
[1724686946950,0.007,63597.0,63596.0,0.20125838]
[1724686947155,0.007,63597.0,63596.0,0.51574338]
[1724686947381,0.15723,63601.0,63596.0,0.20125838]
[1724686947537,0.47064001,63601.0,63596.0,0.04401638]
[1724686947737,0.157238,63598.0,63594.0,0.001]
[1724686947966,0.15617801,63597.0,63594.0,0.002]
[1724686948168,0.31341901,63597.0,63594.0,0.001]
[1724686948446,0.16817801,63597.0,63596.0,0.001]
[1724686948743,0.16817801,63597.0,63596.0,0.002]
[1724686948744,0.95437801,63597.0,63596.0,0.002]
[1724686948924,1.25685801,63597.0,63596.0,0.001]
[1724686949125,1.26885801,63597.0,63594.0,0.001]
[1724686949331,0.786225,63595.0,63594.0,0.001]
[1724686949537,0.94240301,63595.0,63594.0,0.001]
[1724686950608,0.157257,63590.0,63589.0,0.0009053]
[1724686950812,0.157255,63591.0,63589.0,0.0009053]
[1724686951014,0.31343301,63591.0,63589.0,0.01672273]
[1724686951214,0.31343501,63591.0,63589.0,0.01672273]
[1724686951638,0.15617801,63591.0,63589.0,0.01672273]
[1724686952379,0.16617801,63591.0,63589.0,0.01772273]
[1724686952851,0.16717801,63591.0,63589.0,0.01872273]
[1724686953282,0.157257,63590.0,63589.0,0.01872273]
[1724686953486,0.94246301,63590.0,63589.0,0.0029053]
[1724686954126,0.94246301,63590.0,63589.0,0.0019053]
[1724686954332,0.94877888,63590.0,63589.0,0.0009053]
[1724686954508,0.95777888,63590.0,63589.0,0.0019053]
[1724686954718,0.94977888,63590.0,63589.0,0.0019053]
[1724686954928,0.63426488,63590.0,63589.0,0.0009053]
[1724686955271,0.64926488,63590.0,63589.0,0.0019053]
[1724686956602,0.33475088,63590.0,63589.0,0.0019053]
[1724686956808,0.33475088,63590.0,63589.0,0.01782273]
[1724686957437,0.64926488,63590.0,63589.0,0.0019053]
[1724686957643,0.33475088,63590.0,63589.0,0.0019053]
[1724686958009,0.64926488,63590.0,63589.0,0.0019053]
[1724686958209,0.17749388,63590.0,63589.0,0.0019053]
[1724686960575,0.00569605,63590.0,63589.0,0.0019053]
[1724686960860,0.157253,63592.0,63589.0,0.0019053]
[1724686961045,0.00569605,63590.0,63589.0,0.04927653]
[1724686961222,0.15617801,63591.0,63589.0,0.04927653]
[1724686961434,0.00569605,63590.0,63589.0,0.04927653]
[1724686962074,0.00569605,63590.0,63589.0,0.04827653]
[1724686963023,0.00569605,63590.0,63589.0,0.20553553]
[1724686963218,0.04699722,63596.0,63589.0,0.20553553]
[1724686963219,0.04699722,63596.0,63590.0,0.1381]
[1724686963434,0.0470148,63600.0,63593.0,0.314497]
[1724686963641,0.000824,63597.0,63593.0,0.314497]
[1724686963857,0.000824,63597.0,63595.0,0.157243]
[1724686964067,0.000824,63597.0,63593.0,0.314497]
[1724686964268,0.000824,63597.0,63591.0,0.314509]
[1724686964474,0.000824,63597.0,63593.0,0.157248]
[1724686964670,0.01,63596.0,63593.0,0.157248]
[1724686964876,0.01,63596.0,63593.0,0.158248]
[1724686965101,0.004824,63597.0,63593.0,0.158248]
[1724686966782,0.015824,63597.0,63593.0,0.158248]
[1724686966977,0.015824,63597.0,63593.0,0.001]
[1724686966978,0.029824,63597.0,63593.0,0.001]
[1724686967183,0.15617801,63596.0,63589.0,0.0009053]
[1724686967381,0.157257,63590.0,63589.0,0.0009053]
[1724686967833,0.2042718,63590.0,63589.0,0.0009053]
[1724686968057,0.62794901,63590.0,63589.0,0.0009053]
[1724686968257,0.6336421,63590.0,63589.0,0.0009053]
[1724686968466,0.63556399,63590.0,63589.0,0.0009053]
[1724686968680,0.1728711,63590.0,63589.0,0.0019053]
[1724686968902,0.01669309,63590.0,63589.0,0.0019053]
[1724686969109,0.01669309,63590.0,63589.0,0.01782213]
[1724686969326,0.01669309,63590.0,63589.0,0.0019053]
[1724686969530,0.01650389,63590.0,63589.0,0.0019053]
[1724686969737,0.01650389,63590.0,63589.0,0.0029053]
[1724686969956,0.02450389,63590.0,63589.0,0.0029053]
[1724686970162,0.00550389,63590.0,63589.0,0.0009053]
[1724686970374,0.00550389,63590.0,63589.0,0.05740603]
[1724686970577,0.026,63590.0,63589.0,0.05740603]
[1724686970979,0.01769405,63590.0,63589.0,0.05740603]
[1724686971473,0.03069405,63590.0,63589.0,0.05740603]
[1724686971626,0.07968518,63590.0,63589.0,0.05740603]
[1724686971837,0.06668518,63590.0,63589.0,0.05740603]
[1724686972278,0.01961121,63590.0,63589.0,0.05740603]
[1724686973393,0.01761121,63590.0,63589.0,0.05640603]
[1724686973603,0.02561121,63590.0,63589.0,0.05740603]
[1724686974248,0.02561121,63590.0,63589.0,0.21466503]
[1724686974469,0.02561121,63590.0,63589.0,0.52918403]
[1724686974678,0.02561121,63590.0,63589.0,0.91880303]
[1724686975106,0.018,63590.0,63589.0,0.60428403]
[1724686976020,0.06511263,63590.0,63589.0,0.60428403]
[1724686976232,0.018,63590.0,63589.0,0.60428403]
[1724686976679,0.02562115,63590.0,63589.0,0.60428403]
[1724686977793,0.07275916,63590.0,63589.0,0.60428403]
[1724686978046,0.02562115,63590.0,63589.0,0.60428403]
[1724686978261,0.02562115,63590.0,63589.0,0.66578403]
[1724686978262,0.07275916,63590.0,63589.0,0.66578403]
[1724686978480,0.02373066,63590.0,63589.0,0.98030303]
[1724686978687,0.018,63590.0,63589.0,0.98030303]
[1724686979937,0.018,63590.0,63589.0,0.66578403]
[1724686980141,0.06513801,63590.0,63589.0,0.6102833]
[1724686980343,0.09425615,63590.0,63589.0,0.6102833]
[1724686980546,0.02373394,63590.0,63589.0,0.6102833]
[1724686980958,0.02373394,63590.0,63589.0,0.9248023]
[1724686981595,0.018,63590.0,63589.0,0.9248023]
[1724686982213,0.018,63590.0,63589.0,1.2393213]
[1724686982427,0.018,63590.0,63589.0,0.9248023]
[1724686982624,0.018,63590.0,63589.0,1.2393213]
[1724686983044,0.018,63590.0,63589.0,0.9248023]
[1724686983475,0.02373891,63590.0,63589.0,0.9248023]
[1724686983684,0.06514916,63590.0,63589.0,0.9248023]
[1724686983885,0.018,63590.0,63589.0,0.9248023]
[1724686984095,0.02373891,63590.0,63589.0,0.9248023]
[1724686985660,0.02373891,63590.0,63589.0,0.4736833]
[1724686985860,0.02373891,63590.0,63589.0,0.0019053]
[1724686986072,0.09446265,63590.0,63589.0,0.1591643]
[1724686986273,0.09446265,63590.0,63589.0,0.4736833]
[1724686986475,0.09446265,63590.0,63589.0,0.7882023]
[1724686986681,0.09446265,63590.0,63589.0,0.2389643]
[1724686986914,0.09446265,63590.0,63589.0,0.5534833]
[1724686987117,0.09528665,63590.0,63589.0,0.5534833]
[1724686987646,0.02456291,63590.0,63589.0,0.9304023]
[1724686987853,0.018824,63590.0,63589.0,0.9304023]
[1724686989369,0.07171386,63590.0,63589.0,0.9304023]
[1724686990343,0.07171408,63590.0,63589.0,0.9304023]
[1724686990729,0.06598412,63590.0,63589.0,0.9304023]
[1724686991975,0.06598412,63590.0,63589.0,0.7882023]
[1724686992458,0.06598412,63590.0,63589.0,0.4736833]
[1724686992664,0.08956418,63590.0,63589.0,0.0019053]
[1724686993068,0.09896211,63590.0,63589.0,0.0019053]
[1724686993693,0.3770295,63590.0,63589.0,0.0019053]
[1724686994318,0.47134975,63590.0,63589.0,0.0019053]
[1724686994494,1.00497851,63590.0,63589.0,0.0019053]
[1724686994730,1.31949251,63590.0,63589.0,0.0019053]
[1724686996155,1.30968178,63590.0,63589.0,0.0019053]
[1724686996382,1.31568178,63590.0,63589.0,0.0009053]
[1724686996586,1.00116778,63590.0,63589.0,0.0009053]
[1724686996788,1.01516778,63590.0,63589.0,0.0009053]
[1724686997854,1.32968178,63590.0,63589.0,0.0009053]
[1724686998475,1.01516778,63590.0,63589.0,0.0009053]
[1724686998855,1.35431747,63590.0,63589.0,0.0009053]
[1724686999950,1.03980347,63590.0,63589.0,0.0009053]
[1724687000166,0.41345237,63590.0,63589.0,0.6922433]
[1724687000379,0.04000911,63590.0,63589.0,0.37218863]
[1724687000588,0.04000911,63590.0,63589.0,0.3029643]
[1724687000791,0.04000911,63590.0,63589.0,0.9320023]
[1724687001031,0.04000911,63590.0,63589.0,1.2465213]
[1724687001300,0.028824,63590.0,63589.0,1.2465213]
[1724687002020,0.028824,63590.0,63589.0,1.5610403]
[1724687002433,0.014824,63590.0,63589.0,1.5610403]
[1724687003051,0.024824,63590.0,63589.0,1.5610403]
[1724687003284,0.010824,63590.0,63589.0,1.5610403]
[1724687003491,0.018824,63590.0,63589.0,1.2475213]
[1724687003700,0.008824,63590.0,63589.0,1.2475213]
[1724687003911,0.000824,63590.0,63589.0,1.2465213]
[1724687004112,0.001824,63590.0,63589.0,1.2525213]
[1724687004530,0.001824,63590.0,63589.0,1.2475213]
[1724687004739,0.001824,63590.0,63589.0,1.2515213]
[1724687005992,0.001824,63590.0,63589.0,1.2505213]
[1724687006424,0.001824,63590.0,63589.0,1.2515213]
[1724687012012,0.001824,63590.0,63589.0,1.72221831]
[1724687012232,0.001824,63590.0,63589.0,1.74521831]
[1724687012642,0.001824,63590.0,63589.0,1.89521831]
[1724687013915,0.000824,63597.0,63596.0,1.415182]
[1724687014145,0.000824,63597.0,63596.0,2.01138223]
[1724687015448,0.000824,63597.0,63596.0,2.02165773]
[1724687015652,0.000824,63597.0,63596.0,2.02465773]
[1724687016093,0.000824,63597.0,63596.0,2.02965773]
[1724687020435,0.000824,63597.0,63596.0,2.34414273]
[1724687021020,0.000824,63597.0,63596.0,2.44414273]
[1724687021517,0.000824,63597.0,63596.0,2.44514273]
[1724687021724,0.000824,63597.0,63596.0,2.44214273]
[1724687022152,0.000824,63597.0,63596.0,2.43714273]
[1724687022423,0.000824,63597.0,63596.0,2.45114273]
[1724687022424,0.001824,63597.0,63596.0,2.45114273]
[1724687022669,0.001824,63597.0,63596.0,2.44014273]
[1724687023195,0.001824,63597.0,63596.0,2.45114273]
[1724687023673,0.002824,63597.0,63596.0,2.45414273]
[1724687023916,0.001824,63597.0,63596.0,2.44014273]
[1724687024150,0.001824,63597.0,63596.0,2.43914273]
[1724687025516,0.002824,63597.0,63596.0,2.45314273]
[1724687025720,0.001824,63597.0,63596.0,2.45014273]
[1724687026128,0.002824,63597.0,63596.0,2.45614273]
[1724687027192,0.002824,63597.0,63596.0,2.14165773]
[1724687031014,0.002824,63597.0,63596.0,2.45714273]
[1724687033811,0.002824,63597.0,63596.0,2.60614273]
[1724687034025,0.002824,63597.0,63596.0,2.29165773]
[1724687034234,0.002824,63597.0,63596.0,2.26865773]
[1724687035115,0.001824,63597.0,63596.0,2.26265773]
[1724687035327,0.000824,63597.0,63596.0,2.24865773]
[1724687035537,0.002824,63597.0,63596.0,2.28665773]
[1724687035951,0.001824,63597.0,63596.0,2.27165773]
[1724687036159,0.002824,63597.0,63596.0,2.28565773]
[1724687036393,0.003824,63597.0,63596.0,2.11247972]
[1724687036602,0.003824,63597.0,63596.0,1.370697]
[1724687037027,0.003824,63597.0,63596.0,1.449097]
[1724687038538,0.002824,63597.0,63596.0,1.506697]
[1724687038737,0.003824,63597.0,63596.0,1.66587501]
[1724687038959,0.001824,63597.0,63596.0,1.67487501]
[1724687039162,0.002824,63597.0,63596.0,1.99836001]
[1724687039367,0.002824,63597.0,63596.0,2.00536829]
[1724687039763,0.002824,63597.0,63596.0,2.31985329]
[1724687040176,0.002824,63597.0,63596.0,2.31284501]
[1724687042564,0.002824,63597.0,63596.0,2.31384501]
[1724687043606,0.000824,63597.0,63596.0,1.98636001]
[1724687043837,0.001824,63597.0,63596.0,1.99836001]
[1724687043996,0.001824,63597.0,63596.0,1.98636001]
[1724687044772,0.001824,63597.0,63596.0,2.30084501]
[1724687044977,0.001824,63597.0,63596.0,2.30184501]
[1724687045405,0.002824,63597.0,63596.0,2.31584501]
[1724687045832,0.000824,63597.0,63596.0,1.98636001]
[1724687046012,0.001824,63597.0,63596.0,1.99936001]